Cogmind - Beta 13 @@@ ROGUE MODE // 2024.04.24 @ 13:03:10 Player: monkeman Result: Destroyed by 2A-4D2(R) with Subdweller Machine Gun Performance ------------- Evolutions (0) 0 Regions Visited (2) 400 Robots Destroyed (34) 170 Value Destroyed (783) 783 Prototype IDs (4) 80 Alien Tech Used (0) 0 Bonus (0) 0 TOTAL SCORE: 1433 Bonus ------- None Cogmind --------- Core Integrity 0/250 Matter 103/300 Energy 183/200 System Corruption 0% Temperature Cool (0) Movement Treading (240) Ox1 Location -10/Subcaves Parts ------- > --- POWER (1) -------- Subdweller Power Source > --- PROPULSION (2) --- Light Treads Light Treads > --- UTILITY (2) ------ High-capacity Storage Unit Medium Armor Plating > --- WEAPON (2) ------- Autogun Autogun > --- INVENTORY (20) --- Light Nuclear Core Wheel Subdweller Monowheel High-capacity Matter Pod (71) Targeting Computer Medium Armor Plating Hacking Suite Tractor Beam Beam Rifle Subdweller Laser Particle Cannon Particle Cannon Autogun Grenade Launcher Grenade Launcher Hammer Peak State ------------ > --- POWER ------------ Subdweller Power Source > --- PROPULSION ------- Light Treads Spiked Treads > --- UTILITY ---------- High-capacity Storage Unit Medium Armor Plating > --- WEAPON ----------- Autogun Autogun > --- INVENTORY -------- Light Nuclear Core Light Treads Light Treads Wheel Heat Sink High-capacity Matter Pod Targeting Computer Medium Armor Plating Medium Armor Plating Medium Armor Plating Hacking Suite Tractor Beam Beam Rifle Particle Cannon Particle Cannon Autogun Autogun Grenade Launcher Grenade Launcher Hammer [Rating: 15] Favorites ----------- Power Subdweller Power Source Engine Subdweller Power Source Propulsion Light Treads Treads Light Treads Wheel Wheel Utility Medium Armor Plating Storage High-capacity Storage Unit Protection Medium Armor Plating Weapon Autogun Energy Gun EM Pulse Gun Ballistic Gun Autogun Ballistic Cannon Battle Cannon Launcher Grenade Launcher Impact Weapon Hammer Build | -11 -10 -10 ------- Run | Yrd Mat Sub Slots Evolved . | . . . Power . | . . . Propulsion . | . . . Utility . | . . . Weapon . | . . . Parts Attached 31 | 6 12 13 Power 4 | 1 1 2 Engine 4 | 1 1 2 Core . | . . . Reactor . | . . . Propulsion 6 | 2 1 3 Treads 5 | 1 1 3 Leg . | . . . Wheel 1 | 1 . . Hover . | . . . Flight . | . . . Utility 5 | 1 2 2 Device . | . . . Storage 2 | 1 1 . Processor . | . . . Hackware . | . . . Protection 3 | . 1 2 Artifact . | . . . Weapon 16 | 2 8 6 Energy Gun 1 | 1 . . Energy Cannon . | . . . Ballistic Gun 8 | 1 5 2 Ballistic Cannon 2 | . . 2 Launcher 2 | . 2 . Special Weapon . | . . . Impact Weapon 3 | . 1 2 Slashing Weapon . | . . . Piercing Weapon . | . . . Special Melee Weapon . | . . . Unidentified Prototypes . | . . . Parts Lost 6 | . . 6 Power . | . . . Propulsion 2 | . . 2 Utility 2 | . . 2 Weapon 2 | . . 2 Highest Loss Streak 3 | . . 3 To Critical Strikes . | . . . Average Slot Usage (%) 99 | . 99 99 Engine 14 | . 14 14 Treads 25 | . 23 27 Wheel 1 | . 4 . Storage 14 | . 14 14 Protection 13 | . 13 14 Ballistic Gun 20 | . 26 15 Ballistic Cannon 4 | . . 8 Impact Weapon 2 | . . 4 Naked Turns . | . . . Heaviest Build 58 | 11 58 58 Greatest Support 40 | 20 40 40 Greatest Overweight (x) 5 | 1 5 1 Average Overweight (x) 1 | . 2 1 Largest Inventory Capacity 20 | 8 20 20 Average Capacity 19 | 6 18 20 Most Carried 20 | 4 20 20 Average Carried 18 | 3 16 19 Final Capacity 20 | 8 20 20 Final Carried 20 | 4 20 16 Class Distribution -------------------- 100% | Mutant Dominant Class ---------------- Mutant | -10/Materials Mutant | -10/Subcaves Resources | -11 -10 -10 ----------- Run | Yrd Mat Sub Matter Collected 1035 | 207 486 342 Remotely . | . . . Salvage Created 936 | . 592 344 Parts 67 | . 48 19 Haulers Intercepted 2 | . 2 . Recyclers Shooed . | . . . Parts Field Recycled . | . . . Retrieved Matter . | . . . Parts Self-Destructed 11 | . . 11 Prevented . | . . . Kills | -11 -10 -10 ------- Run | Yrd Mat Sub Combat Hostiles Destroyed 25 | . 13 12 Guns 17 | . 10 7 Cannons 5 | . . 5 AOE 3 | . 3 . Classes Destroyed 9 | . 8 1 Worker 1 | . 1 . Builder 1 | . 1 . Tunneler 1 | . 1 . Hauler 2 | . 2 . Operator 2 | . 2 . Watcher 2 | . 2 . Swarmer 9 | . 6 3 Grunt 9 | . 7 2 Subdweller 7 | . . 7 Best Kill Streak 5 | . 5 3 Combat Bots Only 3 | . 3 3 Max Kills in Single Turn 3 | . 3 2 Gunslinging 1 | . . 1 Exploded 2 | . 2 . Melee . | . . . Uniques/NPCs Destroyed . | . . . Combat | -11 -10 -10 -------- Run | Yrd Mat Sub Hostile Shots Fired 136 | . 32 104 Missed 38 | . 12 26 Damage Taken 1538 | . 231 1307 Core 262 | . 10 252 Absorbed by Shields . | . . . Core Remaining (%) 100 | 100 . . Volleys Fired 85 | . 44 41 Largest 2 | . 2 2 Hottest 62 | . 53 62 Shots Fired 160 | . 81 79 Gun 129 | . 79 50 Cannon 29 | . . 29 Launcher 2 | . 2 . Special . | . . . Kinetic 158 | . 79 79 Thermal . | . . . Explosive 2 | . 2 . Electromagnetic . | . . . Robot Hit Streak 25 | . 6 25 Robot Miss Streak 10 | . 10 4 Penetration Max . | . . . Secondary Targets 2 | . 1 1 Max Gunslinging Chain 1 | . 1 1 Shots Hit Robots 105 | . 43 62 Core Hits 45 | . 26 19 Critical Kills . | . . . Critical Parts Destroyed . | . . . Critical Strikes 2 | . . 2 Blast 2 | . . 2 Melee Attacks 26 | . 5 21 Impact 26 | . 5 21 Slashing . | . . . Piercing . | . . . Sneak Attacks 1 | . 1 . Combat Hostiles . | . . . Follow-up Attacks . | . . . Damage Inflicted 1975 | . 844 1131 Guns 1283 | . 647 636 Cannons 495 | . . 495 Explosions 131 | . 131 . Melee 66 | . 66 . Ramming . | . . . Kinetic 1778 | . 647 1131 Thermal . | . . . Explosive 131 | . 131 . Electromagnetic . | . . . Impact 66 | . 66 . Slashing . | . . . Piercing . | . . . Highest Corruption . | . . . Average Corruption . | . . . Corruption Purged . | . . . Corruption Blocked . | . . . Overload Shots . | . . . Overflow Damage 56 | . 46 10 Projectiles 10 | . . 10 Explosions . | . . . Melee 46 | . 46 . Knockbacks 6 | . 1 5 Impact 1 | . 1 . Kinetic 5 | . . 5 Secondary . | . . . Self-Inflicted Damage 16 | . 16 . Shots 1 | . 1 . Rammed . | . . . Targets Rammed . | . . . Kicked . | . . . Crushed . | . . . Highest Temperature 57 | . 57 . Average Temperature 11 | . 11 . Received Heat Transfer 282 | . 105 177 Siege Activations . | . . . Robots Corrupted . | . . . Combat Hostiles . | . . . Parts Fried . | . . . Impact Corruptions 2 | . 2 . Robots Melted . | . . . Combat Hostiles . | . . . Parts Melted . | . . . Heat Transferred . | . . . Parts Sabotaged . | . . . Parts Stolen . | . . . Parts Stripped . | . . . Power Chain Reactions . | . . . Alert | -11 -10 -10 ------- Run | Yrd Mat Sub Peak Influence 323 | . 323 . Initial . | . . . Average 115 | . 119 . Maximum Alert Level 1 | . 1 . Low Security (%) 93 | 100 93 . Level 1 6 | . 6 . Level 2 . | . . . Level 3 . | . . . Level 4 . | . . . Level 5 . | . . . High Security . | . . . Max Security . | . . . Squads Dispatched 2 | . 2 . Investigation 1 | . 1 . Extermination . | . . . Reinforcement 1 | . 1 . Assault . | . . . Garrison . | . . . Intercept . | . . . Searches Triggered . | . . . Construction Impeded . | . . . Haulers Reinforced . | . . . Active Scanning Responses . | . . . Cargo Convoy Interrupts . | . . . Stealth | -11 -10 -10 --------- Run | Yrd Mat Sub Distress Signals 1 | . 1 . Communications Jammed . | . . . Distress Signals . | . . . Times Spotted 34 | . 20 14 Peak Tracking Total 4 | . 4 3 Tactical Retreats 2 | . 1 1 Traps | -11 -10 -10 ------- Run | Yrd Mat Sub Traps Triggered . | . . . Indirectly . | . . . Trap Hack Attempts . | . . . Triggered . | . . . Disarmed . | . . . Reprogrammed . | . . . Reused . | . . . Traps Extracted . | . . . Installed . | . . . Triggered . | . . . Machines | -11 -10 -10 ---------- Run | Yrd Mat Sub Machines Disabled . | . . . Max in Single Turn . | . . . Machines Repaired . | . . . Machines Dismantled . | . . . Machines Sabotaged . | . . . Overloaded Fab Kills . | . . . Hacking | -11 -10 -10 --------- Run | Yrd Mat Sub Machines Accessed 8 | . 8 . Terminals 7 | . 7 . Fabricators . | . . . Repair Stations . | . . . Recycling Units 1 | . 1 . Scanalyzers . | . . . Garrison Access . | . . . Total Hacks 21 | . 21 . Successful 8 | . 8 . Failed 12 | . 12 . Catastrophic 2 | . 2 . Database Lockouts 1 | . 1 . Manual 15 | . 15 . Terminals 19 | . 19 . Fabricators . | . . . Repair Stations . | . . . Recycling Units 2 | . 2 . Scanalyzers . | . . . Garrison Access . | . . . Terminal Hacks 5 | . 5 . Robot Analysis 2 | . 2 . Prototype ID Bank 2 | . 2 . Locate Traps 1 | . 1 . Fabricator Hacks . | . . . Repair Station Hacks . | . . . Recycling Unit Hacks . | . . . Scanalyzer . | . . . Garrison Access Hacks . | . . . Unauthorized Hacks 3 | . 3 . Terminals 2 | . 2 . Botnet 2 | . 2 . Fabricators . | . . . Repair Stations . | . . . Recycling Units 1 | . 1 . Tunnel 1 | . 1 . Scanalyzers . | . . . Garrison Access . | . . . Data Cores Recovered 1 | . 1 . Used . | . . . Hacking Detections 8 | . 8 . Full Trace Events 1 | . 1 . Feedback Events . | . . . Feedback Blocked . | . . . Robot Schematics Acquired . | . . . Robots Built . | . . . Authchips . | . . . Time . | . . . Total Robot Build Rating . | . . . Part Schematics Acquired . | . . . Parts Built . | . . . Authchips . | . . . Time . | . . . Total Part Build Rating . | . . . Parts Repaired . | . . . Time . | . . . Parts Recycled . | . . . Recycled Matter . | . . . Retrieved Matter . | . . . Retrieved Components . | . . . Parts Scanalyzed . | . . . Part Schematics Acquired . | . . . Parts Damaged . | . . . Bothacking | -11 -10 -10 ------------ Run | Yrd Mat Sub Used RIF Installer . | . . . Robots Hacked . | . . . Non-combat . | . . . Combat . | . . . Robot Hacks Applied . | . . . Relay Couplers Released . | . . . Fabnet Peak Effective % . | . . . Robots Rewired . | . . . Allies Hacked . | . . . Hacks Repelled . | . . . Allies | -11 -10 -10 -------- Run | Yrd Mat Sub Total Allies . | . . . Largest Group . | . . . Highest-Rated Group . | . . . Highest-Rated Ally . | . . . Total Orders . | . . . Ally Attacks . | . . . Total Damage . | . . . Kills . | . . . Allies Corrupted . | . . . Allies Melted . | . . . Intel | -11 -10 -10 ------- Run | Yrd Mat Sub Robot Analysis Total 2 | . 2 . Derelict Logs Recovered 1 | . . 1 Drone Launches . | . . . Drone Recoveries . | . . . Exploration | -11 -10 -10 ------------- Run | Yrd Mat Sub Turns Passed 2841 | 43 1272 1526 Spaces Moved 1114 | 34 553 527 Core 1 | 1 . . Treads 855 | 1 327 527 Legs . | . . . Wheels 258 | 32 226 . Hover . | . . . Flight . | . . . Fastest Speed 50 | 50 95 240 Average Speed 218 | 89 196 249 Slowest Speed 250 | 160 240 250 Overloaded Moves . | . . . Propulsion Burnouts . | . . . Robots Hopped . | . . . Cave-ins Triggered . | . . . Exploration Rate (%) 44 | 3 90 41 Regions Visited 2 Branch Regions 1 Pre-discovered Areas 1 | . 1 . Known Exits Taken . | . . . Unknown Exits Taken 2 | 1 1 . Scrap Searched 3 | . . 3 Spaces Dug 3 | . 1 2 Terrain Destroyed 15 | . 13 2 Melee 3 | . 1 2 Projectile . | . . . AOE 12 | . 12 . Terrain Rammed . | . . . Walls Destroyed . | . . . Machines Disabled . | . . . Actions | -11 -10 -10 --------- Run | Yrd Mat Sub Total 1347 | 44 666 637 Wait 43 | . 19 24 Move 1112 | 33 552 527 Hop . | . . . Pick Up 33 | 5 23 5 Fast Attach 9 | 5 3 1 Attach 7 | 1 . 6 Detach . | . . . Swap 15 | . 9 6 Drop 17 | . 11 6 Fire 85 | . 44 41 Melee 26 | . 5 21 Ram . | . . . Kick . | . . . Crush . | . . . Escape Stasis . | . . . Rewire . | . . . Trap . | . . . Miscellaneous . | . . . Route ------- -11/Scrapyard -10/Materials (discovered 5 exits: [*Mat x3] / [*Min] / [*Sub]) -10/Subcaves History --------- Turn | Location | Event 22 | -11/Scrapyard | Discovered new exit (range 15) 44 | -11/Scrapyard | Entered Materials 331 | -10/Materials | Build established: Mutant 516 | -10/Materials | Discovered new exit (range 7) 648 | -10/Materials | Discovered new exit (range 11) 732 | -10/Materials | Central database locked down 1024 | -10/Materials | Discovered new exit (range 16) 1227 | -10/Materials | Discovered new exit (range 14) 1310 | -10/Materials | Discovered new exit (range 3) 1316 | -10/Materials | Entered Subcaves 1333 | -10/Subcaves | Learned Materials emergency access door positions 1402 | -10/Subcaves | Shifting Twisted Machinery released Spk. Treads 1416 | -10/Subcaves | Shifting Twisted Machinery released Battle Cannon 1998 | -10/Subcaves | A swath of the cavern ceiling suddenly collapsed 2173 | -10/Subcaves | Shifting Twisted Machinery released Sub. Monowheel 2437 | -10/Subcaves | Core integrity fell below 50% 2828 | -10/Subcaves | Core integrity fell below 20% 2842 | -10/Subcaves | Destroyed by 2A-4D2(R) with Subdweller Machine Gun Last Messages --------------- 02472_ Acquired 26 matter. 02473_ Z3-N4X(u) deconstructs Twisted Machinery. 02475_ Acquired 59 matter. 02477_ Subatomizers dissect the Sub. Optics. 02481_ Dropped Sub. Power Source. 02484_ Acquired 2 matter. 02488_ Subatomizers dissect the Sub. Optics. 02499_ Z3-N4X(u) deconstructs Twisted Machinery. 02649_ CY-QAZ(u) tweaks Twisted Machinery. 02665_ CY-QAZ(u) deconstructs Twisted Machinery. 02815_ 2A-4D2(R) knocked back. 02816_ F0-P6S(R): "SUBMAD!" 02818_ F0-P6S(R) knocked back. 02820_ Battle Cannon destroyed. 02824_ Med. Armor Plating destroyed. 02830_ PP-QF5(R) destroyed. 02838_ F0-P6S(R) destroyed. 02838_ Spk. Treads destroyed. 02840_ Subatomizers dissect the Sub. Optics. Map ----- +----------------------------------------------------+ | ???# " "##?????????????????????????????????? | | ???# """#?????????????????????????????????? | | ???## "#?????????????????????????????????? | | ??### ##?????????????????????????????????? | | ### ##??????????????????????????????????? | | # " ## ##???????????????????????????????????? | | ### ##### #????????????????????????????????????? | | ??###???## #????????????????????????????????????? | | ##????##?# ##????????????????????????????????????? | | "##???# ## ######????????????????????????????????? | | " ##### ## # #????????????????????????????????? | | #"" # ##?####??????????????????????????? | | ""# ### ##?????????????????????????? | | #" ## # #???###???????????????????? | | #" ## ## #?## ##??????????????????? | | # ##### ##?# #??????????????????? | | ## # ### ^ ##### ##?## #??????????????????? | | ?###### ####?## #??????????????????? | | ??????### # ## #??## #???????????????????? | | ????????####### #?## ##??????????????????? | | ??????????# #?# ##?????????????????? | | ??????????# ### #?????????????????? | | ??????????## * "#?????????????????? | | ???????????# ## !&&"##?????????????????? | | ??????????# ### %%"##??????????????????? | | ??????????# ?# @!%&#???????????????????? | | ??????????## ###! R#??????????????????? | | ???????????# #?## #?????????????????? | | ???????????## u ^ #??# #????????????????? | | ????????????# #?? #????????????????? | | ???????????? ? ^" "???????????????? | | ??????????? """ ??????????????? | | ???????????### ""#""?????????????? | | ?????????????## ##### "" ???????????????? | | ??????????????## ?????# ?"""????????????????? | | ???????????????## ?????? ?????????????????????? | | ????????????????? ?????????????????????????????? | | ?????????????????## ?????????????????????????????? | | ?????????????????????????????????????????????????? | | ?????????????????????????????????????????????????? | | ?????????????????????????????????????????????????? | | ?????????????????????????????????????????????????? | | ?????????????????????????????????????????????????? | | ?????????????????????????????????????????????????? | | ?????????????????????????????????????????????????? | | ?????????????????????????????????????????????????? | | ?????????????????????????????????????????????????? | | ?????????????????????????????????????????????????? | | ?????????????????????????????????????????????????? | | ?????????????????????????????????????????????????? | +----------------------------------------------------+ Best States ------------- Heat Dissipation 25 Energy Generation 15 Energy Capacity 250 Matter Stores 300 Matter Capacity 300 Sight Range 16 Terrain Scan Density 10 Armor Coverage 225 Evasion (%) 44 Recoil Reduction 2 Item Schematics ----------------- None Robot Schematics ------------------ None Fabricated ------------ Nothing Alien Tech Used ----------------- None Achievements -------------- None Challenges ------------ None Game ------ Seed ArmageddonCannonInterrupter Manual? 0 Play Time 00:13:23 Cumulative 44.6 hours Start 2024.04.24 @ 12:50:09 End 2024.04.24 @ 13:03:10 Sessions 1 Manual Loads 0 Difficulty Rogue Special Mode None Game No. 57 Rogue 57 Adventurer 0 Explorer 0 Win Type - Total 1 Types 1/0/0/0/0/0/0/0/0 Lore% 27 Gallery% 42 Achievement% 31 Wizard Run 0 Options --------- Layout 1 ASCII 0 Keyboard 0 Movement Mouse Keybinds 0 Fullscreen 1 Font 24/Smallcaps Map View 50x35 Zoom Use 0% Tactical HUD 1 Map Filters NONE Filters NONE Steam 1 RUN: d73bbad2-66b3-4410-8136-b5f1fb09b204